bitfinex/quotes_BTCUSD_20250803
["timestamp","ask_amount","ask_price","bid_price","bid_amount"]
[1754253712141,0.97155881,114620.0,114610.0,0.13292]
[1754253712524,0.96955881,114620.0,114610.0,0.13292]
[1754253712729,0.97055881,114620.0,114610.0,0.13292]
[1754253713748,0.97155881,114620.0,114610.0,0.13292]
[1754253715215,0.97155881,114620.0,114610.0,0.1865]
[1754253716198,0.97155881,114620.0,114610.0,0.13292]
[1754253716822,0.95518099,114620.0,114610.0,0.13296]
[1754253718119,0.96951781,114620.0,114610.0,0.13296]
[1754253718903,0.96951781,114620.0,114600.0,0.14536284]
[1754253719101,0.5985987,114610.0,114600.0,0.14536284]
[1754253719315,0.60474305,114610.0,114600.0,0.28044284]
[1754253720102,0.5985987,114610.0,114600.0,0.28044284]
[1754253721796,0.95318099,114620.0,114600.0,0.28044284]
[1754253722012,0.02891974,114620.0,114610.0,0.21598482]
[1754253722245,0.61932561,114620.0,114610.0,0.21810482]
[1754253722643,0.61318099,114620.0,114610.0,0.21810482]
[1754253723710,0.61418099,114620.0,114610.0,0.21810482]
[1754253724449,0.61518099,114620.0,114610.0,0.21810482]
[1754253724653,0.61518099,114620.0,114610.0,0.22660482]
[1754253724654,0.0024,114620.0,114610.0,0.22660482]
[1754253725477,0.0004,114620.0,114610.0,0.22660482]
[1754253725911,0.0004,114620.0,114610.0,0.22960482]
[1754253726934,0.0004,114620.0,114610.0,0.23160482]
[1754253739845,0.5989987,114620.0,114610.0,0.22647284]
[1754253742267,0.5989987,114620.0,114610.0,0.28321284]
[1754253742487,0.5989987,114620.0,114610.0,0.28617284]
[1754253744288,0.39840003,114620.0,114610.0,0.28617284]
[1754253744460,0.41205735,114620.0,114610.0,0.28617284]
[1754253745024,0.41205735,114620.0,114610.0,0.15333284]
[1754253745250,0.41205735,114620.0,114610.0,0.28613284]
[1754253746255,0.39840003,114620.0,114610.0,0.28613284]
[1754253752186,0.5985987,114620.0,114610.0,0.28613284]
[1754253752878,0.5985987,114620.0,114610.0,0.28813284]
[1754253753702,0.61225602,114620.0,114610.0,0.28605284]
[1754253753846,0.61225602,114620.0,114610.0,0.28309284]
[1754253755462,0.61225602,114620.0,114610.0,0.28605284]
[1754253758838,0.61225602,114620.0,114610.0,0.15037284]
[1754253759048,0.61225602,114620.0,114610.0,0.28309284]
[1754253759454,0.5985987,114620.0,114610.0,0.15037284]
[1754253759943,0.5985987,114620.0,114610.0,0.28109284]
[1754253760185,0.5985987,114620.0,114610.0,0.27909284]
[1754253760381,0.5985987,114620.0,114610.0,0.14737284]
[1754253760570,0.5985987,114620.0,114610.0,0.28009284]
[1754253763194,0.5985987,114620.0,114610.0,0.22335284]
[1754253763403,0.5985987,114620.0,114610.0,0.09063284]
[1754253763743,0.5985987,114620.0,114610.0,0.27874284]
[1754253764935,0.5985987,114620.0,114610.0,0.22335284]
[1754253765156,0.5985987,114620.0,114610.0,0.27874284]
[1754253765577,0.5985987,114620.0,114610.0,0.28187284]
[1754253767358,0.01496234,114630.0,114610.0,0.15113284]
[1754253767564,0.01496234,114630.0,114620.0,0.13272]
[1754253767828,0.61356104,114630.0,114620.0,0.19322]
[1754253769318,0.61347743,114630.0,114620.0,0.19322]
[1754253769522,0.61347743,114630.0,114620.0,0.05539]
[1754253769734,0.61347743,114630.0,114620.0,0.13272]
[1754253770361,0.62713392,114630.0,114620.0,0.13272]
[1754253771196,0.62713392,114630.0,114620.0,0.18811]
[1754253773406,0.62713392,114630.0,114620.0,0.19124]
[1754253774392,0.62713392,114630.0,114620.0,0.13272]
[1754253774607,0.63762392,114630.0,114620.0,0.13272]
[1754253775448,0.97762392,114630.0,114620.0,0.13272]
[1754253775938,0.96396743,114630.0,114620.0,0.13272]
[1754253776880,0.97010908,114630.0,114620.0,0.13272]
[1754253778251,0.97010908,114630.0,114600.0,0.12923198]
[1754253778435,0.37151038,114630.0,114610.0,0.18811]
[1754253778634,0.5985987,114620.0,114610.0,0.18811]
[1754253779281,0.61225658,114620.0,114610.0,0.18811]
[1754253780614,1.56134528,114620.0,114610.0,0.001]
[1754253780823,1.56134528,114620.0,114610.0,0.13372]
[1754253781000,1.56748564,114620.0,114610.0,0.13372]
[1754253781220,1.56748559,114620.0,114610.0,0.13372]
[1754253781477,1.56748559,114620.0,114610.0,0.13472]
[1754253781708,1.56748559,114620.0,114610.0,0.13372]
[1754253781930,6.61748559,114620.0,114610.0,0.13272]
[1754253782152,6.62666961,114620.0,114610.0,0.13272]
[1754253782355,6.61948559,114620.0,114610.0,0.13272]
[1754253783734,6.61334528,114620.0,114610.0,0.13272]
[1754253783951,6.61947854,114620.0,114610.0,0.13272]
[1754253784589,0.34,114610.0,114600.0,0.13288]
[1754253784807,1.5371974,114610.0,114600.0,0.13288]
[1754253785808,1.5634414,114610.0,114600.0,0.13288]
[1754253786034,1.5634414,114610.0,114600.0,0.18827]
[1754253786235,0.9648427,114610.0,114600.0,0.18827]
[1754253786830,0.9385987,114610.0,114600.0,0.18827]
[1754253786976,1.5371974,114610.0,114600.0,0.18827]
[1754253787854,0.9385987,114610.0,114600.0,0.18827]
[1754253788877,1.5371974,114610.0,114600.0,0.18827]
[1754253792376,1.55085827,114610.0,114600.0,0.18827]
[1754253793191,1.55085827,114610.0,114600.0,0.19139]
[1754253796693,1.57710227,114610.0,114600.0,0.19139]
[1754253796923,2.07710227,114610.0,114600.0,0.19139]
[1754253797757,2.0634414,114610.0,114600.0,0.19139]
[1754253798169,2.0719414,114610.0,114600.0,0.13276]
[1754253798577,2.0634414,114610.0,114600.0,0.13276]
[1754253799369,2.0634414,114610.0,114600.0,0.18623]
[1754253799576,2.0644414,114610.0,114600.0,0.18623]
[1754253800170,2.07056571,114610.0,114600.0,0.18623]
[1754253800793,2.57056571,114610.0,114600.0,0.18623]
[1754253801211,2.57056571,114610.0,114600.0,0.18935]
[1754253801866,2.57156571,114610.0,114600.0,0.18935]
[1754253803744,2.57156571,114610.0,114600.0,0.18939]
[1754253804891,2.57156571,114610.0,114600.0,0.19154]
[1754253805090,1.97296701,114610.0,114600.0,0.19154]
[1754253805975,1.9668427,114610.0,114600.0,0.19154]
[1754253806126,1.97297599,114610.0,114600.0,0.19154]
[1754253807162,1.37438098,114610.0,114600.0,0.19154]
[1754253807411,1.97297968,114610.0,114600.0,0.19154]
[1754253809227,1.98116942,114610.0,114600.0,0.19154]
[1754253809360,1.97297968,114610.0,114600.0,0.19154]
[1754253809563,1.98116935,114610.0,114600.0,0.19154]
[1754253811801,1.64116935,114610.0,114600.0,0.19154]
[1754253812037,1.63297968,114610.0,114600.0,0.19154]
[1754253812238,1.9668427,114610.0,114600.0,0.19154]
[1754253819258,1.98050385,114610.0,114600.0,0.19154]
[1754253829510,1.9668427,114610.0,114600.0,0.19154]
[1754253830805,2.71435026,114610.0,114600.0,0.19154]
[1754253832575,2.72801137,114610.0,114600.0,0.19154]
[1754253832779,2.72801137,114610.0,114600.0,0.05874]
[1754253832979,2.72801137,114610.0,114600.0,0.19146]
[1754253833785,2.72801137,114610.0,114600.0,0.05874]
[1754253833987,2.72801137,114610.0,114600.0,0.19146]
[1754253835048,2.72801137,114610.0,114600.0,0.05874]
[1754253835466,2.72801137,114610.0,114600.0,0.19146]
[1754253836294,2.71435026,114610.0,114600.0,0.19146]
[1754253839308,2.72801136,114610.0,114600.0,0.19146]
[1754253843757,2.05495823,114610.0,114600.0,0.19146]
[1754253844408,1.87389582,114610.0,114600.0,0.19146]
[1754253860485,1.20084269,114610.0,114600.0,0.19146]
[1754253860688,1.86023472,114610.0,114600.0,0.19146]
[1754253863577,1.87389537,114610.0,114600.0,0.19146]
[1754253869550,0.86084224,114610.0,114600.0,0.28009284]
[1754253869747,0.86084224,114610.0,114600.0,0.35080482]
[1754253869952,1.53389537,114610.0,114600.0,0.35080482]
[1754253870325,1.53289537,114610.0,114600.0,0.35080482]
[1754253870526,1.51823472,114610.0,114600.0,0.35080482]
[1754253870730,1.51823472,114610.0,114600.0,0.35180482]
[1754253871191,1.51823472,114610.0,114600.0,0.35280482]
[1754253871305,0.84518159,114610.0,114600.0,0.35280482]
[1754253871510,0.84518159,114610.0,114600.0,0.37906249]
[1754253872002,0.84518159,114610.0,114600.0,0.40529949]
[1754253873594,0.84518159,114610.0,114600.0,0.41675154]
[1754253882890,0.84518159,114610.0,114600.0,0.41679154]
[1754253887350,0.84518159,114610.0,114600.0,1.10729369]
[1754253891715,0.84518159,114610.0,114600.0,1.09685061]
[1754253893932,0.84518159,114610.0,114600.0,0.42379748]
[1754253894693,1.51823472,114610.0,114600.0,0.16061653]
[1754253894856,1.53294472,114610.0,114600.0,0.29325653]
[1754253895063,1.53294472,114610.0,114600.0,0.27580751]
[1754253897611,1.53294472,114610.0,114600.0,0.14316751]
[1754253898001,1.53294472,114610.0,114600.0,0.27580751]
[1754253899444,1.51823472,114610.0,114600.0,0.27580751]
[1754253903228,1.53294472,114610.0,114600.0,0.27580751]
[1754253903594,1.32972768,114610.0,114600.0,0.14316751]
[1754253903797,1.32972768,114610.0,114600.0,0.27580751]
[1754253904687,1.31501768,114610.0,114600.0,0.27580751]
[1754253906323,1.31501768,114610.0,114600.0,0.32712751]
[1754253906573,0.64196455,114610.0,114600.0,0.32712751]
[1754253906791,1.31501768,114610.0,114600.0,0.32712751]
[1754253910641,1.31501768,114610.0,114600.0,0.33034751]
[1754253913654,1.32867708,114610.0,114600.0,0.33034751]
[1754253918118,1.32867708,114610.0,114600.0,0.30411051]
[1754253919632,1.11020675,114610.0,114600.0,0.30411051]
[1754253921426,1.10985948,114610.0,114600.0,0.30411051]
[1754253921870,0.43680635,114610.0,114600.0,0.30411051]
[1754253922078,0.43680635,114610.0,114600.0,0.37678249]
[1754253922294,0.43680635,114610.0,114600.0,1.74033777]
[1754253922518,0.42314695,114610.0,114600.0,1.74033777]
[1754253923353,0.42314695,114610.0,114600.0,1.76557177]
[1754253923765,0.42314695,114610.0,114600.0,1.76857177]
[1754253925746,0.42314695,114610.0,114600.0,1.79657177]
[1754253926384,0.13804695,114610.0,114600.0,1.79657177]
[1754253930017,0.13804695,114610.0,114600.0,1.12351864]
[1754253932267,0.13804695,114610.0,114600.0,0.37975353]
[1754253932490,0.13804695,114610.0,114600.0,1.05280666]
[1754253932918,0.13804695,114610.0,114600.0,1.31600666]
[1754253937551,0.13804695,114610.0,114600.0,1.32450666]
[1754253938241,0.13804695,114610.0,114600.0,1.53426666]
[1754253939692,0.13804695,114610.0,114600.0,1.55926666]
[1754253940318,0.13804695,114610.0,114600.0,2.23231979]
[1754253940745,0.13804695,114610.0,114600.0,1.55926666]
[1754253944555,0.13804695,114610.0,114600.0,1.55076666]
[1754253944770,0.13804695,114610.0,114600.0,2.22381979]
[1754253948157,0.13804695,114610.0,114600.0,1.55076666]
[1754253949532,0.13804695,114610.0,114600.0,2.23231979]
[1754253952330,0.13804695,114610.0,114600.0,1.55926666]
[1754253957336,0.13804695,114610.0,114600.0,2.23231979]
[1754253958523,0.13804695,114610.0,114600.0,1.55926666]
[1754253960103,0.13804695,114610.0,114600.0,2.20731979]
[1754253960317,0.13804695,114610.0,114600.0,0.88621353]
[1754253960537,0.13804695,114610.0,114600.0,1.55926666]
[1754253960740,0.13804695,114610.0,114600.0,1.55076666]
[1754253964429,0.13804695,114610.0,114600.0,1.52576666]
[1754253964659,0.13804695,114610.0,114600.0,1.55076666]
[1754253965255,0.13804695,114610.0,114600.0,2.19881979]
[1754253965498,0.13804695,114610.0,114600.0,2.22381979]
[1754253965907,0.13804695,114610.0,114600.0,2.23231979]
[1754253968782,0.13804695,114610.0,114600.0,2.40683985]
[1754253968989,0.13804695,114610.0,114600.0,2.23231979]
[1754253971227,0.13804695,114610.0,114600.0,2.22381979]
[1754253974712,0.72086458,114640.0,114610.0,0.025]
[1754253974923,4.757e-05,114630.0,114620.0,0.24078298]
[1754253975106,4.757e-05,114630.0,114620.0,0.23860186]
[1754253975316,4.757e-05,114630.0,114620.0,0.26483186]
[1754253976643,0.6882907,114630.0,114620.0,0.23860186]
[1754253977447,0.6892907,114630.0,114620.0,0.23960186]
[1754253978263,0.01623757,114630.0,114620.0,0.23960186]
[1754253978671,0.6892907,114630.0,114620.0,0.23960186]
[1754253978850,0.48711069,114630.0,114620.0,0.23960186]
[1754253979263,0.01365713,114640.0,114620.0,0.23960186]
[1754253979459,0.67305313,114630.0,114620.0,0.28986186]
[1754253980341,0.67305313,114630.0,114620.0,0.28886186]
[1754253981126,0.67305313,114630.0,114620.0,0.28986186]
[1754253983892,0.67305313,114640.0,114620.0,0.28986186]
[1754253985040,0.67305313,114630.0,114620.0,0.10608186]
[1754253985214,0.67305313,114630.0,114620.0,0.24078298]
[1754253985431,0.67305313,114630.0,114620.0,0.23860186]
[1754253985811,0.67305313,114630.0,114620.0,0.22115284]
[1754253986601,0.67305313,114630.0,114620.0,0.22215284]
[1754253987834,0.67305313,114630.0,114620.0,0.23960186]
[1754253989155,0.0004,114650.0,114620.0,0.23960186]
[1754253989367,0.67305313,114630.0,114620.0,0.28986186]
[1754253989573,0.67305313,114630.0,114620.0,0.22215284]
[1754253989984,0.67305313,114630.0,114620.0,0.22115284]
[1754253991612,0.67305313,114630.0,114620.0,0.22215284]
[1754253991816,0.67305313,114630.0,114620.0,0.24215284]
[1754253992422,0.01410383,114650.0,114620.0,0.24215284]
[1754253992819,0.67305313,114630.0,114620.0,0.24215284]
[1754253993189,0.67305313,114630.0,114620.0,0.24115284]
[1754253994197,0.67305313,114630.0,114620.0,0.24215284]
[1754253996777,0.67305313,114630.0,114620.0,0.10963284]
[1754253996983,1.34610626,114630.0,114620.0,0.24215284]
[1754253998434,1.34610626,114630.0,114620.0,0.10963284]
[1754253998658,1.34610626,114630.0,114620.0,0.24215284]
[1754254000874,1.34800626,114630.0,114620.0,0.24215284]
[1754254005329,0.0019,114630.0,114620.0,0.24215284]
[1754254005558,0.0417921,114640.0,114620.0,0.24215284]
[1754254005694,1.34610626,114630.0,114620.0,0.24215284]
[1754254010261,1.34610626,114630.0,114620.0,0.29666284]
[1754254015117,1.34610626,114630.0,114620.0,0.29670284]
[1754254015355,1.34716626,114630.0,114620.0,0.24219284]
[1754254015807,1.34716626,114630.0,114620.0,0.10967284]
[1754254015983,1.34716626,114630.0,114620.0,0.15356]
[1754254016958,1.34716626,114630.0,114620.0,0.15256]
[1754254017424,1.34610626,114630.0,114620.0,0.15256]
[1754254017663,1.68710626,114630.0,114620.0,0.15256]
[1754254017843,1.68710626,114630.0,114620.0,0.20707]
[1754254019504,1.70076395,114630.0,114620.0,0.20707]
[1754254020654,1.68710626,114630.0,114620.0,0.20707]
[1754254023791,1.70076393,114630.0,114620.0,0.20707]
[1754254026581,0.35465767,114630.0,114620.0,0.21213]
[1754254026791,1.68710626,114630.0,114620.0,0.21213]
[1754254026969,1.01405313,114630.0,114620.0,0.21213]
[1754254028581,0.341,114630.0,114620.0,0.21213]
[1754254028883,1.01405313,114630.0,114620.0,0.21213]
[1754254029083,0.341,114630.0,114620.0,0.21213]
[1754254029285,1.01405313,114630.0,114620.0,0.21213]
[1754254031437,1.02771046,114630.0,114620.0,0.21213]
[1754254036793,0.01465733,114630.0,114620.0,0.97381597]
[1754254036992,0.001,114630.0,114620.0,0.30076284]
[1754254037198,0.001,114630.0,114620.0,0.97381597]
[1754254042929,0.001,114630.0,114620.0,1.31381597]
[1754254049888,0.001,114630.0,114620.0,0.97381597]
[1754254050226,0.50534308,114640.0,114620.0,0.97381597]
[1754254050433,0.50534308,114640.0,114630.0,0.22111284]
[1754254050672,0.50534308,114640.0,114630.0,0.27660284]
[1754254051453,0.50734308,114640.0,114630.0,0.27660284]
[1754254052542,0.50534308,114640.0,114630.0,0.27660284]
[1754254052856,0.002,114640.0,114630.0,0.27660284]
[1754254053667,0.004,114640.0,114630.0,0.27660284]
[1754254072971,0.004,114640.0,114630.0,0.94965597]
[1754254073597,0.004,114640.0,114630.0,0.27660284]
[1754254075513,0.004,114640.0,114630.0,0.94965597]
[1754254086296,0.004,114640.0,114630.0,0.27660284]
[1754254086509,0.004,114640.0,114630.0,0.94965597]
[1754254094645,0.004,114640.0,114630.0,0.94455597]
[1754254096778,0.004,114640.0,114630.0,0.94980597]
[1754254099815,0.004,114640.0,114630.0,0.27675284]
[1754254099974,0.004,114640.0,114630.0,0.94980597]
[1754254104505,0.004,114640.0,114630.0,0.96725499]
[1754254105381,0.002,114640.0,114630.0,0.96725499]
[1754254105821,0.002,114640.0,114630.0,0.9774524]
[1754254105960,0.003,114640.0,114630.0,0.9774524]
[1754254106556,0.001,114640.0,114630.0,0.9774524]
[1754254106981,0.002,114640.0,114630.0,0.9774524]
[1754254110250,0.002,114640.0,114630.0,0.29420186]
[1754254110652,0.002,114640.0,114630.0,0.96725499]
[1754254113182,0.002,114640.0,114630.0,0.97703754]
[1754254115272,0.002,114640.0,114630.0,0.96725499]
[1754254125625,0.002,114640.0,114630.0,0.29420186]
[1754254125829,0.002,114640.0,114630.0,0.96725499]
[1754254129875,0.002,114640.0,114630.0,0.29420186]
[1754254130074,0.002,114640.0,114630.0,0.96725499]
[1754254131317,0.48557153,114650.0,114630.0,0.96725499]
[1754254131462,0.68462807,114660.0,114640.0,0.13232]
[1754254131669,1.02462807,114660.0,114650.0,0.13232]
[1754254132476,1.02762807,114660.0,114650.0,0.13232]
[1754254132689,1.02462807,114660.0,114650.0,0.13232]
[1754254133139,1.04128247,114660.0,114650.0,0.13232]
[1754254133590,1.04128247,114660.0,114650.0,0.13032]
[1754254134454,1.04428247,114660.0,114650.0,0.17822]
[1754254134661,0.37122934,114660.0,114650.0,0.26685284]
[1754254134843,0.37122934,114660.0,114650.0,0.94501597]
[1754254135092,0.3600544,114660.0,114650.0,0.94501597]
[1754254135817,0.3570544,114660.0,114650.0,0.94501597]
[1754254136231,0.3540544,114660.0,114650.0,0.94501597]
[1754254136654,0.3540544,114660.0,114650.0,0.27196284]
[1754254138081,0.3540544,114660.0,114650.0,0.94501597]
[1754254138082,0.0140544,114660.0,114650.0,0.94501597]
[1754254138301,0.0140544,114660.0,114650.0,0.96246499]
[1754254139572,0.0140544,114660.0,114650.0,0.28941186]
[1754254140431,0.68710753,114660.0,114650.0,0.15705186]
[1754254140660,0.68710753,114660.0,114650.0,0.26881284]
[1754254140820,0.68710753,114660.0,114650.0,0.08863284]
[1754254141001,0.68710753,114660.0,114650.0,0.22091284]
[1754254141728,0.68710753,114660.0,114650.0,0.26881284]
[1754254142367,0.0140544,114660.0,114650.0,0.26881284]
[1754254142555,0.67345313,114660.0,114650.0,0.26881284]
[1754254144819,0.67345313,114660.0,114650.0,0.27188284]
[1754254147183,0.67345313,114660.0,114650.0,0.08863284]
[1754254147379,0.67345313,114660.0,114650.0,0.22091284]
[1754254148401,0.67345313,114660.0,114650.0,0.26881284]
[1754254153908,0.67345313,114660.0,114650.0,0.27189284]
[1754254155280,0.0004,114660.0,114650.0,0.27189284]
[1754254155485,0.67345313,114660.0,114650.0,0.27189284]
[1754254157094,0.67345313,114660.0,114650.0,0.27390284]
[1754254172324,0.0004,114660.0,114650.0,0.27390284]
[1754254175598,0.67345313,114660.0,114650.0,0.27390284]
[1754254179376,0.0004,114660.0,114650.0,0.27390284]
[1754254179575,0.67345313,114660.0,114650.0,0.27390284]
[1754254180451,0.67345313,114660.0,114650.0,0.22087284]
[1754254181028,0.67345313,114660.0,114650.0,0.27187284]
[1754254181411,0.67345313,114660.0,114650.0,0.27494284]
[1754254182989,0.67345313,114660.0,114650.0,0.27187284]
[1754254184595,0.67345313,114660.0,114650.0,0.27494284]
[1754254185411,0.0004,114660.0,114650.0,0.27710284]
[1754254185623,0.67345313,114660.0,114650.0,0.27710284]
[1754254191347,0.0004,114660.0,114650.0,0.27710284]
[1754254195551,0.67345313,114660.0,114650.0,0.27710284]
[1754254201842,0.67345313,114660.0,114640.0,4.756e-05]
[1754254202057,0.67305313,114650.0,114640.0,4.756e-05]
[1754254202476,1.68610626,114650.0,114640.0,0.13228756]
[1754254202718,1.72599889,114650.0,114640.0,0.13228756]
[1754254202916,1.05294576,114650.0,114640.0,0.13228756]
[1754254203382,1.05294576,114650.0,114640.0,4.756e-05]
[1754254203566,1.05294576,114650.0,114640.0,0.00104756]
[1754254203799,1.05294576,114650.0,114640.0,0.13228756]
[1754254205955,1.03928913,114650.0,114640.0,0.13228756]
[1754254206619,0.366236,114650.0,114640.0,0.13228756]
[1754254206838,1.03928913,114650.0,114640.0,0.13228756]
[1754254207326,1.04542356,114650.0,114640.0,0.13228756]
[1754254208686,1.04541871,114650.0,114640.0,0.13228756]
[1754254209122,1.05907495,114650.0,114640.0,0.13228756]
[1754254209353,1.05294537,114650.0,114640.0,0.13228756]
[1754254212245,1.04794537,114650.0,114640.0,0.13228756]
[1754254212653,0.71294537,114650.0,114640.0,0.13228756]
[1754254214877,1.05294537,114650.0,114640.0,0.13228756]
[1754254217029,1.03928913,114650.0,114640.0,0.13228756]
[1754254217621,1.01305313,114650.0,114640.0,0.13228756]
[1754254218245,1.01305313,114650.0,114640.0,0.18190756]
[1754254218863,1.01305313,114650.0,114640.0,0.13228756]
[1754254219895,1.02670935,114650.0,114640.0,0.13228756]
[1754254222598,1.02670935,114650.0,114640.0,0.18190756]
[1754254228278,1.03284017,114650.0,114640.0,0.18190756]
[1754254229131,1.03284017,114650.0,114640.0,0.18508756]
[1754254230636,1.03284017,114650.0,114640.0,0.18724756]
[1754254232683,1.01918395,114650.0,114640.0,0.18724756]
[1754254235697,1.03283993,114650.0,114640.0,0.18724756]
[1754254238359,1.03285166,114650.0,114640.0,0.18724756]
[1754254238773,0.35979853,114650.0,114640.0,0.18724756]
[1754254238975,1.03285166,114650.0,114640.0,0.18724756]
[1754254240435,0.35979853,114650.0,114640.0,0.18724756]
[1754254240682,1.03285166,114650.0,114640.0,0.18724756]
[1754254255312,1.02670911,114650.0,114640.0,0.18724756]
[1754254255470,1.01919647,114650.0,114640.0,0.18724756]
[1754254258808,1.03285234,114650.0,114640.0,0.18724756]
[1754254259360,0.35979921,114650.0,114640.0,0.18724756]
[1754254259565,1.03285234,114650.0,114640.0,0.18724756]
[1754254260887,1.0328531,114650.0,114640.0,0.18724756]
[1754254262423,1.0328531,114650.0,114640.0,0.17859756]
[1754254262640,1.0328531,114650.0,114640.0,0.13228756]
[1754254262864,1.04923888,114650.0,114640.0,0.13228756]
[1754254265152,1.04923888,114650.0,114640.0,0.17859756]
[1754254267483,0.37618575,114650.0,114640.0,0.17859756]
[1754254267736,1.04923888,114650.0,114640.0,0.17859756]
[1754254269732,1.03558301,114650.0,114640.0,0.17859756]
[1754254272614,1.04923869,114650.0,114640.0,0.17859756]
[1754254273255,1.03285291,114650.0,114640.0,0.17859756]
[1754254274475,1.03285291,114650.0,114640.0,0.18153756]
[1754254278018,1.05908591,114650.0,114640.0,0.18153756]
[1754254278639,1.05908591,114650.0,114640.0,0.17859756]
[1754254281232,1.07546709,114650.0,114640.0,0.17859756]
[1754254285154,1.07546622,114650.0,114640.0,0.17859756]
[1754254285536,1.07546622,114650.0,114640.0,0.13228756]
[1754254285537,1.08365739,114650.0,114640.0,0.13228756]
[1754254285918,1.07546622,114650.0,114640.0,0.18033756]
[1754254286166,1.07546622,114650.0,114640.0,0.13228756]
[1754254286307,1.07546762,114650.0,114640.0,0.13228756]
[1754254286519,1.08365891,114650.0,114640.0,0.13228756]
[1754254288125,1.08365994,114650.0,114640.0,0.13228756]
[1754254288558,1.75671307,114650.0,114640.0,0.13228756]
[1754254288779,1.08565994,114650.0,114640.0,0.13228756]
[1754254288988,1.08565994,114650.0,114640.0,4.756e-05]
[1754254289181,1.75871307,114650.0,114640.0,0.13228756]
[1754254289400,1.08565994,114650.0,114640.0,0.13228756]
[1754254290156,1.08565994,114650.0,114640.0,4.756e-05]
[1754254290478,1.75971307,114650.0,114640.0,4.756e-05]
[1754254290752,6.92185723,114650.0,114640.0,0.13228756]
[1754254290900,6.90820155,114650.0,114640.0,0.13228756]
[1754254291465,6.88489495,114650.0,114640.0,0.13228756]
[1754254291684,6.88489495,114650.0,114640.0,4.756e-05]
[1754254291926,6.92829739,114650.0,114640.0,4.756e-05]
[1754254292134,6.95160399,114650.0,114640.0,4.756e-05]
[1754254293940,6.96526105,114650.0,114640.0,4.756e-05]
[1754254294356,6.13666132,114650.0,114640.0,0.11880954]
[1754254294563,0.41360819,114650.0,114640.0,0.12387954]
[1754254294726,1.08666132,114650.0,114640.0,0.12387954]
[1754254295331,0.41360819,114650.0,114640.0,0.12387954]
[1754254295596,1.08666132,114650.0,114640.0,0.12387954]
[1754254296013,1.08665847,114650.0,114640.0,0.12387954]
[1754254297453,1.07300141,114650.0,114640.0,0.12387954]
[1754254301628,1.08665799,114650.0,114640.0,0.12387954]
[1754254301941,1.75971112,114650.0,114640.0,4.756e-05]
[1754254302793,1.75971112,114650.0,114640.0,0.04751756]
[1754254303871,1.75970992,114650.0,114640.0,0.04751756]
[1754254306049,6.80970992,114650.0,114640.0,4.756e-05]
[1754254307867,6.94194992,114650.0,114640.0,4.756e-05]
[1754254309228,6.94194992,114650.0,114640.0,0.04751756]
[1754254309644,6.92829334,114650.0,114640.0,0.04751756]
[1754254312655,6.94195011,114650.0,114640.0,0.04751756]
[1754254314147,6.96026547,114650.0,114640.0,0.04751756]
[1754254314354,6.94195011,114650.0,114640.0,0.04751756]
[1754254315856,6.93375861,114650.0,114640.0,0.04751756]
[1754254316023,6.94194631,114650.0,114640.0,0.04751756]
[1754254318253,6.92761904,114650.0,114640.0,0.04751756]
[1754254318456,6.941951,114650.0,114640.0,0.04751756]
[1754254318751,6.601951,114650.0,114640.0,0.04751756]
[1754254320766,6.941951,114650.0,114640.0,0.04751756]
[1754254322429,6.941951,114650.0,114640.0,0.05068756]
[1754254331847,6.94195465,114650.0,114640.0,0.05068756]
[1754254332723,6.92829788,114650.0,114640.0,0.05068756]
[1754254335530,6.94195461,114650.0,114640.0,0.05068756]
[1754254336760,6.92829788,114650.0,114640.0,0.05068756]
[1754254341342,6.94195455,114650.0,114640.0,0.05068756]
[1754254341821,6.96526115,114650.0,114640.0,0.04751756]
[1754254342062,6.96526115,114650.0,114640.0,4.756e-05]
[1754254342302,7.00821388,114650.0,114640.0,4.756e-05]
[1754254342491,6.98933203,114650.0,114640.0,4.756e-05]
[1754254342914,6.98833203,114650.0,114640.0,4.756e-05]
[1754254343118,7.07516959,114650.0,114640.0,4.756e-05]
[1754254343322,7.07616959,114650.0,114640.0,4.756e-05]
[1754254343561,7.08016959,114650.0,114640.0,4.756e-05]
[1754254344172,7.09904016,114650.0,114640.0,4.756e-05]
[1754254346248,7.08538349,114650.0,114640.0,4.756e-05]
[1754254347550,7.08536552,114650.0,114640.0,4.756e-05]
[1754254348190,7.08532733,114650.0,114640.0,4.756e-05]
[1754254349173,7.09898602,114650.0,114640.0,4.756e-05]
[1754254351551,6.98607758,114650.0,114640.0,4.756e-05]
[1754254352773,6.98607758,114650.0,114640.0,0.04695756]
[1754254354582,6.96722498,114650.0,114640.0,0.04695756]
[1754254354814,6.98606817,114650.0,114640.0,0.04695756]
[1754254355806,6.97240948,114650.0,114640.0,0.04695756]
[1754254356925,6.72806122,114650.0,114640.0,0.04695756]
[1754254357121,6.75430122,114650.0,114640.0,0.04695756]
[1754254358811,6.76795973,114650.0,114640.0,0.04695756]
[1754254360979,6.76794801,114650.0,114640.0,0.04695756]
[1754254365621,6.85678557,114650.0,114640.0,0.04695756]
[1754254366038,6.7542895,114650.0,114640.0,0.04998756]
[1754254366240,6.7309829,114650.0,114640.0,0.05210756]
[1754254366888,6.74983453,114650.0,114640.0,0.05210756]
[1754254367132,6.25720184,114650.0,114640.0,0.05210756]
[1754254370344,6.27085948,114650.0,114640.0,0.05210756]
[1754254375979,6.94391261,114650.0,114640.0,0.05210756]
[1754254376335,6.94391637,114650.0,114640.0,0.05210756]
[1754254376976,6.74826537,114650.0,114640.0,0.05210756]
[1754254380947,6.74826451,114650.0,114640.0,0.05210756]
[1754254381375,6.74213077,114650.0,114640.0,0.05210756]
[1754254381634,6.74826661,114650.0,114640.0,0.05210756]
[1754254381822,6.73460897,114650.0,114640.0,0.05210756]
[1754254384817,6.74826654,114650.0,114640.0,0.05210756]
[1754254385025,6.74826654,114650.0,114640.0,0.04610756]
[1754254386123,6.7482669,114650.0,114640.0,0.04610756]
[1754254387108,0.34,114640.0,114630.0,0.04969]
[1754254387318,6.70360933,114640.0,114630.0,0.04969]
[1754254387523,6.70360933,114640.0,114630.0,0.05181]
[1754254387727,6.72984733,114640.0,114630.0,0.05181]
[1754254387989,6.72985595,114640.0,114630.0,0.05181]
[1754254388448,7.17555595,114640.0,114630.0,0.05181]
[1754254388890,7.02569917,114640.0,114630.0,0.05181]
[1754254389134,7.02769917,114640.0,114630.0,0.05181]
[1754254390444,7.0413575,114640.0,114630.0,0.05181]
[1754254391897,7.04136243,114640.0,114630.0,0.05181]
[1754254397632,7.04137346,114640.0,114630.0,0.05181]
[1754254400088,7.04137346,114640.0,114630.0,0.05148153]
[1754254403524,7.04139013,114640.0,114630.0,0.05148153]
[1754254405273,7.04192013,114640.0,114630.0,0.05148153]
[1754254406387,7.0419205,114640.0,114630.0,0.05148153]
[1754254408480,7.04192376,114640.0,114630.0,0.05148153]
[1754254408705,7.1914003,114640.0,114630.0,0.05148153]
[1754254414631,7.0583903,114640.0,114630.0,0.05148153]
[1754254414875,0.85831528,114640.0,114630.0,0.05148153]